{"text_format":"1","workbook":"xlsx","n_sheets":2,"sheets":["حديد مبروم","وزنة واحدة"],"not_rendered":{"charts":0,"images":0,"macros":1,"external_links":0,"defined_names":2,"comments":0,"pivot_tables":0},"unopened":[],"bounds":{"document_bytes":16777216,"sheet_cells":100000,"rows_first":2000,"rows_last":500,"rows_between":2000,"halvings":0,"cell_chars":16384,"cell_head_chars":4096},"cells_cut":0,"cells_raw":0,"read":"whole","date_system":"1900"}

{"sheet":"حديد مبروم","index":0,"n_rows":136,"n_cols":15,"rows_kept":136,"cut":false,"hidden":false,"merged":[[35,11,36,14],[37,11,37,13],[38,11,38,13],[48,11,49,14],[1,11,2,14],[3,11,3,13],[14,11,15,14],[20,11,20,13],[21,11,21,13],[31,11,32,14],[4,11,4,13],[18,11,19,14],[31,6,32,9],[35,6,36,9],[37,6,37,8],[38,6,38,8],[48,6,49,9],[20,6,20,8],[21,6,21,8],[1,6,2,9],[3,6,3,8],[4,6,4,8],[14,6,15,9],[18,6,19,9]]}
[null,"رقم السيارة","أسم السائق"]
[null,875920,"ابراهيم النعيمي",null,null,null,"اشعار اخراج",null,null,null,null,"اشعار اخراج"]
[null,681387,"ابراهيم طير",null,"حديد مبروم 6 مم بضاعة امانة"]
[null,"706252","احمد الرومو",null,"حديد مبروم 8 مم",1,723792,null,null,"رقم السيارة",2,null,null,null,"رقم السيارة"]
[null,743707,"احمد جحا",null,"حديد مبروم 10 مم",null,{"$f":"IFERROR(VLOOKUP(G4,B:C,2,0),\"\")","v":"اكرم طرشان"},null,null,"اسم السائق",null,{"$f":"IFERROR(VLOOKUP(L4,B:C,2,0),\"\")","v":""},null,null,"اسم السائق"]
[null,"011241","احمد رجب",null,"حديد مبروم 12 مم",null,"المادة","التاريخ و الوقت","الرقم الوزنة",null,null,"المادة","التاريخ و الوقت","الرقم الوزنة"]
[null,746888,"احمد لبابيدي",null,"حديد مبروم 14 مم",null,null,{"$f":"IF(I7<>\"\",IF(H7=\"\",NOW(),H7),\"\")","v":"2020-08-20T16:14:30.250"},"***",1,null,null,{"$f":"IF(N7<>\"\",IF(M7=\"\",NOW(),M7),\"\")","v":""},null,1]
[null,443083,"عادل قبلان",null,"حديد مبروم 16 مم",null,null,{"$f":"IF(I8<>\"\",IF(H8=\"\",NOW(),H8),\"\")","v":"2020-09-02T17:50:09.850"},54,2,null,null,{"$f":"IF(N8<>\"\",IF(M8=\"\",NOW(),M8),\"\")","v":""},null,2]
[null,705010,"اسماعيل علاي",null,"حديد مبروم 18 مم",null,null,"2020-09-02T17:50:10.530",54,3,null,null,"",null,3]
[null,109773,"اشرف غرلي",null,"حديد مبروم 20 مم",null,null,"2020-09-02T17:50:11.450",57,4,null,null,"",null,4]
[null,724081,"اكثم ميا",null,"حديد مبروم 25 مم",null,null,"2020-09-02T17:50:12.290",5847,5,null,null,"",null,5]
[null,109426,"اكرم بكري",null,"حديد مبروم 32 مم",null,null,"",null,6,null,null,"",null,6]
[null,723792,"اكرم طرشان",null,"لفائف 6 مم",null,null,"",null,7,null,null,"",null,7]
[null,"032451","انس حريحش",null,null,null,null,"",null,8,null,null,"",null,8]
[null,"011501","أحمد سينو",null,null,null,"القبان",null,null,null,null,"القبان"]
[null,829750,"أنور نسله"]
[null,109668,"باسل الرافع"]
[null,341273,"بشار حليمة"]
[null,"011740","ثائر ماريا",null,null,null,"اشعار اخراج",null,null,null,null,"اشعار اخراج"]
[null,340060,"حامد غرلي"]
[null,340003,"حسن السيد",null,null,3,109613,null,null,"رقم السيارة",4,108328,null,null,"رقم السيارة"]
[null,684469,"حسن عبد الحميد",null,null,null,{"$f":"IFERROR(VLOOKUP(G21,B:C,2,0),\"\")","v":"عمار حبيب"},null,null,"اسم السائق",null,{"$f":"IFERROR(VLOOKUP(L21,B:C,2,0),\"\")","v":"محسن أبو هلال"},null,null,"اسم السائق"]
[null,268176,"حسين يوسف",null,null,null,"المادة","التاريخ و الوقت","الرقم الوزنة",null,null,"المادة","التاريخ و الوقت","الرقم الوزنة"]
[null,341363,"خالد عبد الرحمن",null,null,null,null,{"$f":"IF(I24<>\"\",IF(H24=\"\",NOW(),H24),\"\")","v":"2020-08-20T16:31:36.730"},23166,1,null,null,{"$f":"IF(N24<>\"\",IF(M24=\"\",NOW(),M24),\"\")","v":""},null,1]
[null,109538,"خالد ناصيف",null,null,null,null,{"$f":"IF(I25<>\"\",IF(H25=\"\",NOW(),H25),\"\")","v":""},null,2,null,null,{"$f":"IF(N25<>\"\",IF(M25=\"\",NOW(),M25),\"\")","v":""},null,2]
[null,108443,"خليل العيفة",null,null,null,null,"",null,3,null,null,"",null,3]
[null,705928,"ديب ثريا",null,null,null,null,"",null,4,null,null,"",null,4]
[null,723735,"رامي سليمان",null,null,null,null,"",null,5,null,null,"",null,5]
[null,109541,"رياض حليمة",null,null,null,null,"",null,6,null,null,"",null,6]
[null,867672,"ريكان عامر",null,null,null,null,"",null,7,null,null,"",null,7]
[null,268176,"ساري جمبية",null,null,null,null,"",null,8,null,null,"",null,8]
[null,340097,"سامر حنن",null,null,null,"القبان",null,null,null,null,"القبان"]
[null,723929,"سامر عيسى"]
[null,706205,"سعيد حبوش"]
[null,682911,"سمير الصالح"]
[null,684383,"سومر حجا",null,null,null,"اشعار اخراج",null,null,null,null,"اشعار اخراج"]
[null,443104,"شادي جبل"]
[null,341443,"طارق عنفب",null,null,5,"025730",null,null,"رقم السيارة",6,706203,null,null,"رقم السيارة"]
[null,443083,"عادل قبلان",null,null,null,{"$f":"IFERROR(VLOOKUP(G38,B:C,2,0),\"\")","v":"توفيق بيطار"},null,null,"اسم السائق",null,{"$f":"IFERROR(VLOOKUP(L38,B:C,2,0),\"\")","v":"حسن برادجي"},null,null,"اسم السائق"]
[null,525037,"عارف التتان",null,null,null,"المادة","التاريخ و الوقت","الرقم الوزنة",null,null,"المادة","التاريخ و الوقت","الرقم الوزنة"]
[null,875917,"عارف صبورة",null,null,null,null,{"$f":"IF(I41<>\"\",IF(H41=\"\",NOW(),H41),\"\")","v":"2020-08-20T16:43:34"},23173,1,null,null,{"$f":"IF(N41<>\"\",IF(M41=\"\",NOW(),M41),\"\")","v":""},null,1]
[null,"012902","عبد الرحمن البيك",null,null,null,null,{"$f":"IF(I42<>\"\",IF(H42=\"\",NOW(),H42),\"\")","v":""},null,2,null,null,{"$f":"IF(N42<>\"\",IF(M42=\"\",NOW(),M42),\"\")","v":""},null,2]
[null,341461,"عبد الرحمن مرعي",null,null,null,null,"",null,3,null,null,"",null,3]
[null,107956,"عبدالله عبد الرحمن",null,null,null,null,"",null,4,null,null,"",null,4]
[null,336091,"عدنان السودة",null,null,null,null,"",null,5,null,null,"",null,5]
[null,723992,"عدنان علوش",null,null,null,null,"",null,6,null,null,"",null,6]
[null,224658,"عزام حداد",null,null,null,null,"",null,7,null,null,"",null,7]
[null,705148,"علي ابراهيم",null,null,null,null,"",null,8,null,null,"",null,8]
[null,835715,"علي العبد الله",null,null,null,"القبان",null,null,null,null,"القبان"]
[null,"032187","علي عسكور"]
[null,687957,"علي قبلان"]
[null,729898,"علي نجم"]
[null,157152,"عمار جاموس"]
[null,109613,"عمار حبيب"]
[null,"011338","عمر طه"]
[null,108810,"عمر مرعي"]
[null,789353,"عيسى عيسى"]
[null,743707,"غنام العبد"]
[null,705810,"فداء عيسى"]
[null,108109,"فراس المصري"]
[null,525020,"فيصل قربان"]
[null,335980,"قاسم التوت"]
[null,723791,"قاسم الحسين"]
[null,341209,"قاسم زيدان"]
[null,340752,"قاسم عباس"]
[null,340004,"قيس جيرودية"]
[null,835222,"كمال سيدو"]
[null,729899,"كنعان جحا"]
[null,705623,"لورانس حاج ابراهيم"]
[null,835790,"ماهر الحسين"]
[null,867672,"ماهر الخطيب"]
[null,705890,"ماهر المنفوخ"]
[null,108328,"محسن أبو هلال"]
[null,"032401","محمد بزنكو"]
[null,336349,"محمد بسمة"]
[null,684438,"محمد حاج يوسف"]
[null,706092,"محمد حسن"]
[null,682915,"محمد دغلية"]
[null,785849,"محمد ديب حمنداش"]
[null,109878,"محمد رومية"]
[null,109380,"محمد زيدان"]
[null,341385,"محمد ماميش"]
[null,109731,"محمد مومية"]
[null,724059,"محمد مية"]
[null,682915,"محمد ناصر"]
[null,674037,"محمود الحاج يوسف"]
[null,706130,"محمود جدعان"]
[null,723485,"محمود حسن"]
[null,685773,"محي الدين فداوي"]
[null,108078,"مروان قبلان"]
[null,706300,"مروان محمد جلال الدين"]
[null,335182,"مصطفى الدكر"]
[null,"008688","مصطفى الدكر"]
[null,706209,"مصطفى غضب"]
[null,706204,"مصطفى فطومة"]
[null,109019,"مهند حوري"]
[null,341103,"مهند نقرش"]
[null,526176,"موفق حداد"]
[null,340002,"موفق عطايا"]
[null,723268,"مياس سليمان"]
[null,746956,"ناعس المصري"]
[null,833335,"نذير رجب"]
[null,340001,"نضال جيرودية"]
[null,875913,"واصف النجار"]
[null,723323,"وسيم حسن"]
[null,340005,"وليد عبد الملك"]
[null,109672,"يامن دغمة"]
[null,335656,"يامن محاسن"]
[null,875916,"يوسف مرعي"]
[null,252851,"حسن حمداش"]
[null,722839,"ابراهيم حمداش"]
[null,109781,"احمد علي"]
[null,109780,"محمود احمد"]
[null,705113,"طلال ابراهيم"]
[null,705139,"اسامة بكداش"]
[null,722710,"ابراهيم ابو اسعد"]
[null,723443,"محمد بيلوني"]
[null,706017,"نور الدين جناورو"]
[null,446871,"بشار ديوب"]
[null,109847,"محمد خليل"]
[null,224665,"هيثم الزرقا"]
[null,340712,"محمد الكردي"]
[null,"011375","محمد الشيخ"]
[null,706189,"غسان قاقا"]
[null,706211,"محمد سماك"]
[null,526063,"عبد الكريم خلوف صطيف"]
[null,526139,"مصطفى عثمان"]
[null,706203,"حسن برادجي"]
[null,"027385","محمد قصاب"]
[null,263603,"مأمون بدر"]
[null,757969,"علي خالد رجا"]
[null,685768,"احمد توت"]
[null,130120,"محمد حمداش"]
[null,263607,"كامل كواكي"]
[null,335107,"علي كلثم"]
[null,"025730","توفيق بيطار"]

{"sheet":"وزنة واحدة","index":1,"n_rows":11,"n_cols":2,"rows_kept":11,"cut":false,"hidden":false,"merged":[[1,0,1,1],[10,0,10,1]]}
[]
["اشعار اخراج"]
[]
["****","الرقم الوزنة :"]
[]
[{"$f":"NOW()","v":"2020-09-02T21:32:16.480"},"التاريخ و الوقت :"]
[109380,"رقم السيارة :"]
[{"$f":"VLOOKUP(A7,Table1[#All],2,0)","v":"محمد زيدان"},"السائق :"]
["بيليت","المادة :"]
[]
["القبان"]